{"text_format":"1","workbook":"xlsx","n_sheets":2,"sheets":["Hauptmenü","Konsolidierte Daten"],"not_rendered":{"charts":0,"images":0,"macros":1,"external_links":0,"defined_names":0,"comments":0,"pivot_tables":0},"unopened":[],"bounds":{"document_bytes":16777216,"sheet_cells":100000,"rows_first":2000,"rows_last":500,"rows_between":2000,"halvings":0,"cell_chars":16384,"cell_head_chars":4096},"cells_cut":0,"cells_raw":0,"read":"whole","date_system":"1900"}

{"sheet":"Hauptmenü","index":0,"n_rows":10,"n_cols":12,"rows_kept":10,"cut":false,"hidden":false,"merged":[[3,2,3,3],[8,1,8,5]]}
[]
[]
[null,null,null,null,null,null,null,null,null,"First Page","Vers 1","Vers 2"]
[null,null,"Bitte Jahr auswählen:",null,2024,null,null,null,2014,9,5,6]
[null,null,null,null,null,null,null,null,2015,10,6,7]
[null,null,null,null,null,null,null,null,2016,11,7,8]
[null,null,null,null,null,null,null,null,2017,12,8,9]
[null,null,null,null,null,null,null,null,2018,13,9,10]
[null,"Alle Templates (\".xls\", \".xlsx\" und \".xlsm\") müssen im selben Ordner gespeichert werden.\nEs dürfen keine anderen Dateien in diesem Ordner gespeichert sein. ",null,null,null,null,null,null,2019,14,10,11]
[null,null,null,null,null,null,null,null,null,{"$f":"VLOOKUP($E$4,$I$4:$L$9,2,FALSE)","v":{"$error":"#N/A"}},{"$f":"VLOOKUP($E$4,$I$4:$L$9,3,FALSE)","v":{"$error":"#N/A"}},{"$f":"VLOOKUP($E$4,$I$4:$L$9,4,FALSE)","v":{"$error":"#N/A"}}]

{"sheet":"Konsolidierte Daten","index":1,"n_rows":988,"n_cols":118,"rows_kept":988,"cut":false,"hidden":false,"merged":[]}
["LFNR","JVA","Datum","Name","Vorname","ID-Nummer:","ST01","ST02","SD01","SD02","SD03","SDKom","AD01","AD02","AD03","AD04","AD05","AD06","AD07","AD08","ADKom","SH01","SH02","SH03","SH04","SH05","SH06","SH07","SH08","SH09","SHKom","SV01","SV02","SV03","SV05","SV06","SV07","SV08","SV09","SV10","SVKom","UB01","UB02","UB03","UB04","UB05","UB06","UBKom","LVM01","LVM02","LVM03","LVM04","LVM05","LVM06","LVM07","LVM08","LVM09","LVMKom","UOV01","UOVKom","BD01","BD02","BD03","BD04","BD05","BD06","BD07","BD08","BD09","BD10","BD11","BD12","BD13","BD14","SN01","SN02","BDKom","TN01","TN02","TN03","TN04","TN05","TN06","TN07","TN08","TN09","TN10","TN11","TN12","TN13","TN14","SN03","SN04","TNKom","MN01","MN02","MN03","MN04","MN05","MN06","MN07","MN08","MN09","MN10","MN11","MN12","MN13","MN14","SN05","SN06","MNKom","FB01","FB02","FB03","FB04","FB05","FBKom","Jahr"]
["lfnr","Erste JVA/ JSA/ JA:","Bogen erstmalig angelegt am","Name des Gefangenen","Vorname des Gefangenen","ID-Nummer:","Status zum Stichtag\n   (1=erwachsene Strafgefangene mit angeordneter SV | \n   2=erwachsene Strafgefangene mit vorbehaltener SV |\n   3=Gefangene nach JGG mit vorbehaltener SV | \n   4=Sicherungsverwahrte | \n   5=Unterbrechung der Vollstreckung in dieser Sache | \n   6=Vollstreckung in dieser Sache hat noch nicht begonnen |\n   7=Vollstreckung beendet)","Rechtsgrundlage der Sicherungsverwahrung\n   (1=§ 66 StGB | \n   2=§ 66a StGB | \n   3=§ 66b StGB | \n   4=Anordnung nach Vorbehalt (JGG) | \n   5=nachträgliche SV nach JGG)","Geburtsdatum (TT.MM.JJJJ)","Geschlecht \n(1=männlich | 2=weiblich)","Deutsche Staatsangehörigkeit? \n(1=nein | 2=ja)","Bemerkungen/ Kommentare","Mord/ Totschlag \n(1=nein | 2=ja)","Raub/ räuberische Erpressung (1=nein | 2=ja)","sexueller Übergriff  / sexuelle Nötigung / Vergewaltigung (§§ 177, 178 StGB) \n(1=nein | 2=ja)","sexueller Kindesmissbrauch (§§ 176, 176a, 176b StGB) (1=nein | 2=ja) ","andere sexuelle Handlungen (1=nein | 2=ja)","Körperverletzungsdelikte (1=nein | 2=ja)","BtM-Delikte (1=nein | 2=ja)","Sonstige Delikte (1=nein | 2=ja)","Bemerkungen/ Kommentare","Inhaftierungsdatum (TT.MM.JJJJ)\n  (Zuführungsdatum in beliebige JVA, nicht notwendig in dem Verfahren, das für die Sicherungsverwahrung maßgeblich ist, auch U- Haft)","Beginn der Jugend- oder Freiheitsstrafe, wegen der SV angeordnet oder vorbehalten ist (TT.MM.JJJJ)\n   (Strafzeitbeginn, wie er aus der ersten Strafzeitberechnung erkennbar ist)","Dauer der verhängten Freiheitsstrafen laut Urteil, in dem SV angeordnet oder vorbehalten ist in Monaten (999=lebenslange Freiheitsstrafe)","Berechnetes Ende der Strafhaft (bei lebenslanger Freiheitsstrafe berechnetes Ende der Mindeststrafe) (TT.MM.JJJJ)","Verbüßen von Strafen in anderer Sache seit Beginn der Vollstreckung der Jugend- oder Freiheitsstrafe, wegen der SV angeordnet oder vorbehalten ist\n   (1=nein | 2=ja)","Unterbrechung der Strafhaft im Bezugszeitraum, wenn zum Stichtag wieder in Justizvollzug\n   (1=nein | \n   2=ja, Überweisung in ein psychiatrisches Krankenhaus im Bezugszeitraum (§ 63 StGB) | \n   3=ja, Überweisung in eine Entziehungsanstalt im Bezugszeitraum (§ 64 StGB) | \n   4=ja, Aussetzung zur Bewährung und Widerruf)","Strafhaft beendet? \n(1=nein | 2=ja) ","Datum der Beendigung der Jugend- oder Freiheitsstrafe, wegen der Sicherungsverwahrung angeordnet oder vorbehalten  wurde (Keine Verlegung in andere JVA)  (TT.MM.JJJJ) ","Grund der Beendigung \n   (1=Beendigung zum regulären Strafende | \n   2=Überweisung in ein psychiatrisches Krankenhaus (§ 63 StGB) | \n   3=Überweisung in Entziehungsanstalt (§ 64 StGB) |\n   4=Aussetzung zur Bewährung gem. § 67c I Nr. 1 StGB  |\n   5=Aussetzung zur Bewährung gem. § 67c I Nr. 2 StGB (Behandlungsdefizite) | \n   6=Abschiebung | \n   7=verstorben | \n   8=sonstiges)  ","Bemerkungen/ Kommentare","Sicherungsverwahrung angetreten? \n(1=nein | 2=ja) ","Beginn des Vollzugs der Sicherungsverwahrung (Erstantritt) (TT.MM.JJJJ)","Unterbrechung der Sicherungsverwahrung? (1=nein | 2=ja)","Gründe der Unterbrechung \n  (1=ja, Überweisung in ein psychiatrisches Krankenhaus (§ 63 StGB) | \n   2=ja, Überweisung in eine Entziehungsanstalt (§ 64 StGB) |\n   3=ja, Vollzug anderer Strafen oder U-Haft |\n   4=ja, Aussetzung zur Bewährung und Bewährungswiderruf gemäß § 67g StGB)","Beginn der Unterbrechung (TT.MM.JJJJ)","Ende der Unterbrechung (TT.MM.JJJJ)","Sicherungsverwahrung beendet? (1=nein | 2=ja)","Datum der Beendigung der Sicherungsverwahrung (TT.MM.JJJJ)","Grund der Beendigung der Sicherungsverwahrung\n   (1=Aussetzung zu Bewährung gem. § 67d II 1 StGB | \n   2=Behandlungsdefizite gem. § 67d II 2 StGB | \n   3=Erledigung gem. § 67d III StGB |  \n   4=Überweisung in ein psychiatrisches Krankenhaus (§ 63 StGB) | \n   5=Überweisung in eine Entziehungsanstalt (§ 64 StGB) | \n   6=Abschiebung | \n   7=verstorben)","Bemerkungen/ Kommentare","Name der JVA am Stichtag","Ort der Unterbringung am Stichtag\n   (1=für Sicherungsverwahrung zuständige JVA |\n   2=Unterbringung in einer sozialtherapeutischen Einrichtung (außerhalb der SV Einrichtung) |\n   3=Unterbringung in einer Abteilung/ Anstalt zur Teilnahme an sonst. Behandlungsmaßnahmen | \n   4=Unterbringung in einer Abteilung/ Anstalt zur Teilnahme an Bildungsmaßnahmen | \n   5=Unterbringung in einer Abteilung/ Anstalt des offenen Vollzugs | \n   6=sonstiges)","Zeitlich begrenzter Aufenthalt in einer nicht originär zuständigen Abteilung/ JVA im BEZUGSZEITRAUM\n   (1=nein |\n   2=Unterbringung in einer sozialtherapeutischen Einrichtung (außerhalb der SV Einrichtung) |\n   3=Unterbringung in einer Abteilung/ Anstalt zur Teilnahme an sonst. Behandlungsmaßnahmen | \n   4=Unterbringung in einer Abteilung/ Anstalt zur Teilnahme an Bildungsmaßnahmen | \n   5=Unterbringung in einer Abteilung/ Anstalt des offenen Vollzugs)","Datum des Beginns des Aufenthalts in die SOTHA (TT.MM.JJJJ)","Datum der Rückverlegung (TT.MM.JJJJ)","Gründe für die Rückverlegung\n   (1=auf eigenen Wunsch | \n   2=aus Gründen der Sicherheit oder Ordnung |\n   3=mangelnde Compliance (Motivation, Mitarbeitsbereitschaft, Bruch von \n       Vereinbarungen, Störung der Behandlung anderer) | \n   4=Lockerungsmissbrauch |    \n   5=Abschluss der Behandlung | \n   6=sonstiges) ","Bemerkungen/ Kommentare","Ausführung zur Erhaltung der Lebenstüchtigkeit","Ausführung mit der Möglichkeit der Progression","Ausgang in Begleitung von Justizvollzugsbediensteten","Ausgang in Begleitung anderer Kontaktpersonen (Angehörige, Ehrenamtliche, etc.)","Ausgang ohne Begleitung","Langzeitausgang/ Urlaub/ Freistellung von der Haft","Langzeitausgang/ Urlaub/ Freistellung zur Vorbereitung der Entlassung","Außenbeschäftigung","Freigang","Bemerkungen/ Kommentare","Unterbringung im offenen Vollzug","Bemerkungen/ Kommentare","01. Maßnahmen zur Motivierung oder Therapievorbereitung","02. psychiatrischer Behandlung","03. psychotherapeutischer Behandlung Einzeltherapie (mit Approbation)","04. psychotherapeutischer Behandlung Gruppentherapie (mit Approbation)","05. sozialtherapeutischer Behandlung","06. spezifischen Behandlungsprogrammen für Sexualstraftäter ","07. spezifischen Behandlungsprogrammen für Gewalttäter","08. Maßnahmen zur Behandlung einer Suchtproblematik","09. sozialen Trainingsmaßnahmen","10. schulischen Maßnahmen","11. beruflicher Ausbildung, Qualifizierung","12. Arbeitstherapie","13. Arbeit","14. anderen (kriminaltherapeutische, psychologische) Einzel- oder \n      Gruppenbehandlungsmaßnahmen","Sonstiges, nämlich…","Sonstiges, nämlich…","Bemerkungen/ Kommentare","01. Maßnahmen zur Motivierung oder Therapievorbereitung","02. psychiatrischer Behandlung","03. psychotherapeutischer Behandlung Einzeltherapie (mit Approbation)","04. psychotherapeutischer Behandlung Gruppentherapie (mit Approbation)","05. sozialtherapeutischer Behandlung","06. spezifischen Behandlungsprogrammen für Sexualstraftäter ","07. spezifischen Behandlungsprogrammen für Gewalttäter","08. Maßnahmen zur Behandlung einer Suchtproblematik","09. sozialen Trainingsmaßnahmen","10. schulischen Maßnahmen","11. beruflicher Ausbildung, Qualifizierung","12. Arbeitstherapie","13. Arbeit","14. anderen (kriminaltherapeutische, psychologische) Einzel- oder \n      Gruppenbehandlungsmaßnahmen","Sonstiges, nämlich…","Sonstiges, nämlich…","Bemerkungen/ Kommentare","01. Maßnahmen zur Motivierung oder Therapievorbereitung","02. psychiatrischer Behandlung","03. psychotherapeutischer Behandlung Einzeltherapie (mit Approbation)","04. psychotherapeutischer Behandlung Gruppentherapie (mit Approbation)","05. sozialtherapeutischer Behandlung","06. spezifischen Behandlungsprogrammen für Sexualstraftäter ","07. spezifischen Behandlungsprogrammen für Gewalttäter","08. Maßnahmen zur Behandlung einer Suchtproblematik","09. sozialen Trainingsmaßnahmen","10. schulischen Maßnahmen","11. beruflicher Ausbildung, Qualifizierung","12. Arbeitstherapie","13. Arbeit","14. anderen (kriminaltherapeutische, psychologische) Einzel- oder \n      Gruppenbehandlungsmaßnahmen","Sonstiges, nämlich…","Sonstiges, nämlich…","Bemerkungen/ Kommentare","der Bereitschaft zur Auseinandersetzung mit der Anlasstat für die Anordnung/ Vorbehalt/ Vollzug der Sicherungsverwahrung","der Bereitschaft zur Mitarbeit an der Erreichung des Vollzugsziels","des allgemeinen Rückfallrisikos (Begehen \"irgendeiner\" Straftat einschl. Gewalt- & Sexualstraftaten)","des speziellen Rückfallrisikos in Bezug auf schwere Gewaltstraftaten","des speziellen Rückfallrisikos in Bezug auf schwere Sexualstraftaten","Bemerkungen/ Kommentare","Jahr"]
[{"$f":"IF(B3<>\"\",#REF!+1,\"\")","v":""}]
[{"$f":"IF(B4<>\"\",A3+1,\"\")","v":""}]
[""]
[""]
[""]
[""]
[""]
[""]
[""]
[""]
[""]
[""]
[""]
[""]
[""]
[""]
[""]
[""]
[""]
[""]
[""]
[""]
[""]
[""]
[""]
[""]
[""]
[""]
[""]
[""]
[""]
[""]
[""]
[""]
[""]
[""]
[""]
[""]
[""]
[""]
[""]
[""]
[""]
[""]
[""]
[""]
[""]
[""]
[""]
[""]
[""]
[""]
[""]
[""]
[""]
[""]
[""]
[""]
[""]
[""]
[""]
[""]
[""]
[{"$f":"IF(B66<>\"\",A65+1,\"\")","v":""}]
[""]
[""]
[""]
[""]
[""]
[""]
[""]
[""]
[""]
[""]
[""]
[""]
[""]
[""]
[""]
[""]
[""]
[""]
[""]
[""]
[""]
[""]
[""]
[""]
[""]
[""]
[""]
[""]
[""]
[""]
[""]
[""]
[""]
[""]
[""]
[""]
[""]
[""]
[""]
[""]
[""]
[""]
[""]
[""]
[""]
[""]
[""]
[""]
[""]
[""]
[""]
[""]
[""]
[""]
[""]
[""]
[""]
[""]
[""]
[""]
[""]
[""]
[""]
[{"$f":"IF(B130<>\"\",A129+1,\"\")","v":""}]
[""]
[""]
[""]
[""]
[""]
[""]
[""]
[""]
[""]
[""]
[""]
[""]
[""]
[""]
[""]
[""]
[""]
[""]
[""]
[""]
[""]
[""]
[""]
[""]
[""]
[""]
[""]
[""]
[""]
[""]
[""]
[""]
[""]
[""]
[""]
[""]
[""]
[""]
[""]
[""]
[""]
[""]
[""]
[""]
[""]
[""]
[""]
[""]
[""]
[""]
[""]
[""]
[""]
[""]
[""]
[""]
[""]
[""]
[""]
[""]
[""]
[""]
[""]
[{"$f":"IF(B194<>\"\",A193+1,\"\")","v":""}]
[""]
[""]
[""]
[""]
[""]
[""]
[""]
[""]
[""]
[""]
[""]
[""]
[""]
[""]
[""]
[""]
[""]
[""]
[""]
[""]
[""]
[""]
[""]
[""]
[""]
[""]
[""]
[""]
[""]
[""]
[""]
[""]
[""]
[""]
[""]
[""]
[""]
[""]
[""]
[""]
[""]
[""]
[""]
[""]
[""]
[""]
[""]
[""]
[""]
[""]
[""]
[""]
[""]
[""]
[""]
[""]
[""]
[""]
[""]
[""]
[""]
[""]
[""]
[{"$f":"IF(B258<>\"\",A257+1,\"\")","v":""}]
[""]
[""]
[""]
[""]
[""]
[""]
[""]
[""]
[""]
[""]
[""]
[""]
[""]
[""]
[""]
[""]
[""]
[""]
[""]
[""]
[""]
[""]
[""]
[""]
[""]
[""]
[""]
[""]
[""]
[""]
[""]
[""]
[""]
[""]
[""]
[""]
[""]
[""]
[""]
[""]
[""]
[""]
[""]
[""]
[""]
[""]
[""]
[""]
[""]
[""]
[""]
[""]
[""]
[""]
[""]
[""]
[""]
[""]
[""]
[""]
[""]
[""]
[""]
[{"$f":"IF(B322<>\"\",A321+1,\"\")","v":""}]
[""]
[""]
[""]
[""]
[""]
[""]
[""]
[""]
[""]
[""]
[""]
[""]
[""]
[""]
[""]
[""]
[""]
[""]
[""]
[""]
[""]
[""]
[""]
[""]
[""]
[""]
[""]
[""]
[""]
[""]
[""]
[""]
[""]
[""]
[""]
[""]
[""]
[""]
[""]
[""]
[""]
[""]
[""]
[""]
[""]
[""]
[""]
[""]
[""]
[""]
[""]
[""]
[""]
[""]
[""]
[""]
[""]
[""]
[""]
[""]
[""]
[""]
[""]
[{"$f":"IF(B386<>\"\",A385+1,\"\")","v":""}]
[""]
[""]
[""]
[""]
[""]
[""]
[""]
[""]
[""]
[""]
[""]
[""]
[""]
[""]
[""]
[""]
[""]
[""]
[""]
[""]
[""]
[""]
[""]
[""]
[""]
[""]
[""]
[""]
[""]
[""]
[""]
[""]
[""]
[""]
[""]
[""]
[""]
[""]
[""]
[""]
[""]
[""]
[""]
[""]
[""]
[""]
[""]
[""]
[""]
[""]
[""]
[""]
[""]
[""]
[""]
[""]
[""]
[""]
[""]
[""]
[""]
[""]
[""]
[{"$f":"IF(B450<>\"\",A449+1,\"\")","v":""}]
[""]
[""]
[""]
[""]
[""]
[""]
[""]
[""]
[""]
[""]
[""]
[""]
[""]
[""]
[""]
[""]
[""]
[""]
[""]
[""]
[""]
[""]
[""]
[""]
[""]
[""]
[""]
[""]
[""]
[""]
[""]
[""]
[""]
[""]
[""]
[""]
[""]
[""]
[""]
[""]
[""]
[""]
[""]
[""]
[""]
[""]
[""]
[""]
[""]
[""]
[""]
[""]
[""]
[""]
[""]
[""]
[""]
[""]
[""]
[""]
[""]
[""]
[""]
[{"$f":"IF(B514<>\"\",A513+1,\"\")","v":""}]
[""]
[""]
[""]
[""]
[""]
[""]
[""]
[""]
[""]
[""]
[""]
[""]
[""]
[""]
[""]
[""]
[""]
[""]
[""]
[""]
[""]
[""]
[""]
[""]
[""]
[""]
[""]
[""]
[""]
[""]
[""]
[""]
[""]
[""]
[""]
[""]
[""]
[""]
[""]
[""]
[""]
[""]
[""]
[""]
[""]
[""]
[""]
[""]
[""]
[""]
[""]
[""]
[""]
[""]
[""]
[""]
[""]
[""]
[""]
[""]
[""]
[""]
[""]
[{"$f":"IF(B578<>\"\",A577+1,\"\")","v":""}]
[""]
[""]
[""]
[""]
[""]
[""]
[""]
[""]
[""]
[""]
[""]
[""]
[""]
[""]
[""]
[""]
[""]
[""]
[""]
[""]
[""]
[""]
[""]
[""]
[""]
[""]
[""]
[""]
[""]
[""]
[""]
[""]
[""]
[""]
[""]
[""]
[""]
[""]
[""]
[""]
[""]
[""]
[""]
[""]
[""]
[""]
[""]
[""]
[""]
[""]
[""]
[""]
[""]
[""]
[""]
[""]
[""]
[""]
[""]
[""]
[""]
[""]
[""]
[{"$f":"IF(B642<>\"\",A641+1,\"\")","v":""}]
[""]
[""]
[""]
[""]
[""]
[""]
[""]
[""]
[""]
[""]
[""]
[""]
[""]
[""]
[""]
[""]
[""]
[""]
[""]
[""]
[""]
[""]
[""]
[""]
[""]
[""]
[""]
[""]
[""]
[""]
[""]
[""]
[""]
[""]
[""]
[""]
[""]
[""]
[""]
[""]
[""]
[""]
[""]
[""]
[""]
[""]
[""]
[""]
[""]
[""]
[""]
[""]
[""]
[""]
[""]
[""]
[""]
[""]
[""]
[""]
[""]
[""]
[""]
[{"$f":"IF(B706<>\"\",A705+1,\"\")","v":""}]
[""]
[""]
[""]
[""]
[""]
[""]
[""]
[""]
[""]
[""]
[""]
[""]
[""]
[""]
[""]
[""]
[""]
[""]
[""]
[""]
[""]
[""]
[""]
[""]
[""]
[""]
[""]
[""]
[""]
[""]
[""]
[""]
[""]
[""]
[""]
[""]
[""]
[""]
[""]
[""]
[""]
[""]
[""]
[""]
[""]
[""]
[""]
[""]
[""]
[""]
[""]
[""]
[""]
[""]
[""]
[""]
[""]
[""]
[""]
[""]
[""]
[""]
[""]
[{"$f":"IF(B770<>\"\",A769+1,\"\")","v":""}]
[""]
[""]
[""]
[""]
[""]
[""]
[""]
[""]
[""]
[""]
[""]
[""]
[""]
[""]
[""]
[""]
[""]
[""]
[""]
[""]
[""]
[""]
[""]
[""]
[""]
[""]
[""]
[""]
[""]
[""]
[""]
[""]
[""]
[""]
[""]
[""]
[""]
[""]
[""]
[""]
[""]
[""]
[""]
[""]
[""]
[""]
[""]
[""]
[""]
[""]
[""]
[""]
[""]
[""]
[""]
[""]
[""]
[""]
[""]
[""]
[""]
[""]
[""]
[{"$f":"IF(B834<>\"\",A833+1,\"\")","v":""}]
[""]
[""]
[""]
[""]
[""]
[""]
[""]
[""]
[""]
[""]
[""]
[""]
[""]
[""]
[""]
[""]
[""]
[""]
[""]
[""]
[""]
[""]
[""]
[""]
[""]
[""]
[""]
[""]
[""]
[""]
[""]
[""]
[""]
[""]
[""]
[""]
[""]
[""]
[""]
[""]
[""]
[""]
[""]
[""]
[""]
[""]
[""]
[""]
[""]
[""]
[""]
[""]
[""]
[""]
[""]
[""]
[""]
[""]
[""]
[""]
[""]
[""]
[""]
[{"$f":"IF(B898<>\"\",A897+1,\"\")","v":""}]
[""]
[""]
[""]
[""]
[""]
[""]
[""]
[""]
[""]
[""]
[""]
[""]
[""]
[""]
[""]
[""]
[""]
[""]
[""]
[""]
[""]
[""]
[""]
[""]
[""]
[""]
[""]
[""]
[""]
[""]
[""]
[""]
[""]
[""]
[""]
[""]
[""]
[""]
[""]
[""]
[""]
[""]
[""]
[""]
[""]
[""]
[""]
[""]
[""]
[""]
[""]
[""]
[""]
[""]
[""]
[""]
[""]
[""]
[""]
[""]
[""]
[""]
[""]
[{"$f":"IF(B962<>\"\",A961+1,\"\")","v":""}]
[""]
[""]
[""]
[""]
[""]
[""]
[""]
[""]
[""]
[""]
[""]
[""]
[""]
[""]
[""]
[""]
[""]
[""]
[""]
[""]
[""]
[""]
[""]
[""]
[""]
[""]